[Event "Cesenatico Open 2019"]
[Site "Cesenatico"]
[Date "2019.09.05"]
[Round "5"]
[White "Voltolini, Giuseppe"]
[Black "Mrdja, Milan"]
[Result "0-1"]
[ECO "A44"]
[WhiteElo "2115"]
[BlackElo "2279"]
[Annotator "ChessBase"]
[PlyCount "80"]
[EventDate "2019.09.01"]
[EventType "swiss"]
[EventCountry "ITA"]
[SourceTitle "playchess.com"]
[Source "ChessBase"]
[SourceQuality "1"]
[TimeControl "40/6000:900"]

1. d4 {[%emt 0:00:00]} c5 {[%emt 0:01:00]} 2. d5 {[%emt 0:00:00]} e5 {[%emt 0:00:00]} 3. e4 {[%emt 0:00:00]} d6 {[%emt 0:00:00]} 4. Bb5+ {[%emt 0:00:00]} Nd7 5. a4 {[%emt 0:00:00]} Ngf6 {[%emt 0:26:00]} 6. Nc3 Be7 {[%emt 0:00:00]} 7. Nf3 {[%emt 0:01:00]} O-O {[%emt 0:00:00]} 8. Be2 Ne8 {[%emt 0:00:00]} 9. O-O {[%emt 0:18:00]} g6 {[%emt 0:00:00]} 10. Bh6 {[%emt 0:00:00]} Ng7 {[%emt 0:00:00]} 11. Qd2 {[%emt 0:03:00]} Nf6 {[%emt 0:00:00]} 12. h3 {[%emt 0:05:00]} Kh8 {[%emt 0:00:00]} 13. Rad1 {[%emt 0:10:00]} Ng8 {[%emt 0:00:00]} 14. Bxg7+ {[%emt 0:01:00]} Kxg7 {[%emt 0:00:00]} 15. Nxe5 dxe5 {[%emt 0:00:00]} 16. d6 {[%emt 0:00:00]} Bg5 {[%emt 0:17:00]} 17. Qd5 {[%emt 0:00:00]} Qb6 {[%emt 0:14:00]} 18. Qxe5+ {[%emt 0:01:00]} Bf6 19. Qg3 {[%emt 0:00:00]} Be6 {[%emt 0:02:00]} 20. e5 Bd8 {[%emt 0:00:00]} 21. b3 {[%emt 0:15:00]} Nh6 {[%emt 0:00:00]} 22. Nd5 Qc6 {[%emt 0:03:00]} 23. Bb5 {[%emt 0:03:00]} Qc8 {[%emt 0:00:00]} 24. Qc3 {[%emt 0:04:00]} Nf5 {[%emt 0:02:00]} 25. d7 {[%emt 0:25:08]} Qb8 26. Rfe1 {[%emt 0:00:00]} a6 {[%emt 0:02:00]} 27. Bf1 {[%emt 0:00:00]} b6 {[%emt 0:00:00]} 28. g4 {[%emt 0:05:59]} Nd4 {[%emt 0:03:00]} 29. Bg2 {[%emt 0:00:00]} Ra7 {[%emt 0:00:00]} 30. Nf6 {[%emt 0:03:50]} a5 31. g5 {[%emt 0:01:24]} Kh8 {[%emt 0:00:00]} 32. Rxd4 cxd4 {[%emt 0:21:40]} 33. Qxd4 {[%emt 0:00:25]} Bxf6 34. exf6 {[%emt 0:00:59]} Rxd7 {[%emt 0:00:29]} 35. Qh4 Qd6 {[%emt 0:04:13]} 36. Qh6 {[%emt 0:00:00]} Rg8 {[%emt 0:02:12]} 37. Bf3 {[%emt 0:00:00]} Qf4 {[%emt 0:00:00]} 38. Kg2 {[%emt 0:00:00]} Rd5 {[%emt 0:00:00]} 39. Bxd5 {[%emt 0:00:00]} Bxd5+ {[%emt 0:00:00]} 40. Kf1 {[%emt 0:00:00]} Qf3 {[%emt 0:00:00]} 0-1

[Event "Cesenatico Open 2019"]
[Site "Cesenatico"]
[Date "2019.09.05"]
[Round "5"]
[White "Marzano, Carlo"]
[Black "Damia, Angelo"]
[Result "0-1"]
[ECO "D53"]
[WhiteElo "2109"]
[BlackElo "2240"]
[Annotator "ChessBase"]
[PlyCount "90"]
[EventDate "2019.09.01"]
[EventType "swiss"]
[EventCountry "ITA"]
[SourceTitle "playchess.com"]
[Source "ChessBase"]
[SourceQuality "1"]
[TimeControl "40/6000:900"]

1. d4 {[%emt 0:00:00]} Nf6 {[%emt 0:05:00]} 2. c4 {[%emt 0:00:00]} e6 {[%emt 0:00:00]} 3. Nf3 {[%emt 0:00:00]} d5 {[%emt 0:00:00]} 4. Nc3 {[%emt 0:00:00]} Be7 5. Bg5 {[%emt 0:00:00]} Nbd7 {[%emt 0:03:00]} 6. cxd5 {[%emt 0:12:00]} Nxd5 {[%emt 0:04:00]} 7. Bxe7 {[%emt 0:00:00]} Qxe7 {[%emt 0:00:00]} 8. e4 {[%emt 0:00:00]} Nxc3 {[%emt 0:00:00]} 9. bxc3 {[%emt 0:00:00]} e5 10. Bd3 {[%emt 0:00:00]} exd4 {[%emt 0:03:00]} 11. cxd4 {[%emt 0:00:00]} Qb4+ 12. Qd2 {[%emt 0:00:00]} Qxd2+ {[%emt 0:00:00]} 13. Nxd2 {[%emt 0:03:00]} c5 {[%emt 0:00:00]} 14. d5 {[%emt 0:14:00]} Ne5 {[%emt 0:00:00]} 15. Be2 {[%emt 0:05:00]} f5 {[%emt 0:05:00]} 16. f4 {[%emt 0:16:00]} Ng6 {[%emt 0:00:00]} 17. O-O {[%emt 0:08:00]} fxe4 {[%emt 0:00:00]} 18. Nxe4 {[%emt 0:01:00]} b6 19. a4 {[%emt 0:06:00]} O-O {[%emt 0:18:00]} 20. g3 Re8 {[%emt 0:00:00]} 21. Bf3 {[%emt 0:01:00]} Bg4 {[%emt 0:08:00]} 22. Bxg4 Rxe4 {[%emt 0:00:00]} 23. d6 {[%emt 0:04:00]} Rd8 {[%emt 0:02:00]} 24. d7 {[%emt 0:00:00]} Nf8 {[%emt 0:02:00]} 25. Rfe1 {[%emt 0:00:00]} Rxe1+ 26. Rxe1 {[%emt 0:00:00]} Kf7 {[%emt 0:00:00]} 27. Kf2 {[%emt 0:00:00]} Nxd7 {[%emt 0:00:00]} 28. Rd1 {[%emt 0:10:00]} Ke7 {[%emt 0:00:00]} 29. Re1+ {[%emt 0:00:00]} Kd6 {[%emt 0:06:00]} 30. Re6+ {[%emt 0:00:00]} Kd5 {[%emt 0:23:00]} 31. Re7 {[%emt 0:00:00]} Nf6 {[%emt 0:00:00]} 32. Bf3+ {[%emt 0:00:00]} Kd4 {[%emt 0:00:00]} 33. Rxg7 {[%emt 0:00:00]} Rd7 {[%emt 0:00:00]} 34. Rxd7+ Nxd7 {[%emt 0:00:00]} 35. g4 {[%emt 0:00:45]} c4 {[%emt 0:07:30]} 36. Bd1 {[%emt 0:05:45]} a6 {[%emt 0:00:00]} 37. Bc2 {[%emt 0:00:56]} b5 {[%emt 0:00:00]} 38. axb5 {[%emt 0:00:00]} axb5 {[%emt 0:00:00]} 39. Bxh7 {[%emt 0:09:29]} b4 {[%emt 0:00:00]} 40. g5 {[%emt 0:01:27]} b3 {[%emt 0:07:01]} 41. Ke2 {[%emt 0:10:09]} Kc3 {[%emt 0:06:48]} 42. Bg8 {[%emt 0:00:00]} Nc5 {[%emt 0:02:32]} 43. g6 {[%emt 0:05:45]} b2 {[%emt 0:11:25]} 44. Bxc4 {[%emt 0:00:00]} b1=Q {[%emt 0:00:00]} 45. g7 {[%emt 0:00:00]} Qe4+ {[%emt 0:00:00]} 0-1

[Event "Cesenatico Open 2019"]
[Site "Cesenatico"]
[Date "2019.09.05"]
[Round "5"]
[White "Kacani, Kirk"]
[Black "Di Trapani, Davide"]
[Result "0-1"]
[ECO "B51"]
[WhiteElo "2091"]
[BlackElo "2181"]
[Annotator "ChessBase"]
[PlyCount "78"]
[EventDate "2019.09.01"]
[EventType "swiss"]
[EventCountry "ITA"]
[SourceTitle "playchess.com"]
[Source "ChessBase"]
[SourceQuality "1"]
[TimeControl "40/6000:900"]

1. e4 {[%emt 0:00:00]} c5 {[%emt 0:00:00]} 2. Nf3 {[%emt 0:00:00]} d6 {[%emt 0:00:00]} 3. Bb5+ {[%emt 0:00:00]} Nd7 {[%emt 0:00:00]} 4. c3 {[%emt 0:00:00]} a6 5. Ba4 {[%emt 0:00:00]} Ngf6 6. Bc2 g6 7. a4 {[%emt 0:01:00]} Bg7 {[%emt 0:09:00]} 8. O-O {[%emt 0:08:00]} O-O {[%emt 0:00:00]} 9. d4 {[%emt 0:00:00]} Qc7 {[%emt 0:06:00]} 10. Re1 {[%emt 0:00:00]} e5 {[%emt 0:06:00]} 11. d5 {[%emt 0:03:00]} Rb8 {[%emt 0:04:00]} 12. a5 {[%emt 0:05:00]} b5 {[%emt 0:11:00]} 13. axb6 {[%emt 0:00:00]} Nxb6 14. b3 {[%emt 0:00:00]} Ne8 {[%emt 0:03:00]} 15. Nbd2 {[%emt 0:32:00]} Bh6 {[%emt 0:10:00]} 16. Nf1 {[%emt 0:19:00]} Bxc1 {[%emt 0:00:00]} 17. Qxc1 {[%emt 0:00:00]} f5 {[%emt 0:02:00]} 18. Ng5 {[%emt 0:23:35]} Ng7 {[%emt 0:47:55]} 19. Nd2 {[%emt 0:07:20]} Qe7 {[%emt 0:00:00]} 20. Ne6 {[%emt 0:00:00]} Nxe6 {[%emt 0:00:00]} 21. dxe6 {[%emt 0:00:00]} f4 {[%emt 0:00:00]} 22. Bd3 {[%emt 0:00:00]} Kh8 {[%emt 0:00:00]} 23. Bxa6 {[%emt 0:00:20]} Bxe6 {[%emt 0:00:00]} 24. Bf1 {[%emt 0:00:00]} g5 {[%emt 0:00:00]} 25. Ra3 {[%emt 0:00:00]} Rf6 {[%emt 0:00:00]} 26. Qa1 {[%emt 0:00:08]} Rh6 27. Ra7 {[%emt 0:00:00]} Qe8 {[%emt 0:00:00]} 28. Qd1 g4 {[%emt 0:00:00]} 29. Be2 {[%emt 0:00:00]} Qh5 {[%emt 0:00:00]} 30. Nf1 {[%emt 0:00:00]} Rg8 {[%emt 0:00:00]} 31. Qxd6 {[%emt 0:00:00]} Nc8 {[%emt 0:00:00]} 32. Qxc5 {[%emt 0:00:00]} Nxa7 {[%emt 0:00:00]} 33. Qxa7 {[%emt 0:00:00]} Bxb3 {[%emt 0:00:00]} 34. Bd1 {[%emt 0:00:00]} Bxd1 {[%emt 0:00:00]} 35. Rxd1 {[%emt 0:00:00]} g3 {[%emt 0:00:00]} 36. Rd5 {[%emt 0:00:00]} gxh2+ {[%emt 0:00:00]} 37. Kh1 {[%emt 0:00:00]} Qg4 {[%emt 0:00:00]} 38. Ng3 {[%emt 0:00:00]} fxg3 {[%emt 0:00:00]} 39. f3 {[%emt 0:00:00]} Qxf3 {[%emt 0:00:00]} 0-1

[Event "Cesenatico Open 2019"]
[Site "Cesenatico"]
[Date "2019.09.05"]
[Round "6"]
[White "Loiacono, Leonardo"]
[Black "Carbone, Stefano"]
[Result "1-0"]
[ECO "D15"]
[WhiteElo "2293"]
[BlackElo "2138"]
[Annotator "ChessBase"]
[PlyCount "127"]
[EventDate "2019.09.01"]
[EventType "swiss"]
[EventCountry "ITA"]
[SourceTitle "playchess.com"]
[Source "ChessBase"]
[SourceQuality "1"]
[TimeControl "40/6000:900"]

1. d4 {[%emt 0:00:00]} d5 {[%emt 0:00:00]} 2. c4 {[%emt 0:00:00]} c6 {[%emt 0:00:00]} 3. Nc3 {[%emt 0:00:00]} Nf6 {[%emt 0:00:00]} 4. Nf3 {[%emt 0:00:00]} a6 5. g3 {[%emt 0:00:00]} dxc4 {[%emt 0:03:00]} 6. Bg2 e6 {[%emt 0:00:00]} 7. Ne5 {[%emt 0:00:00]} c5 {[%emt 0:01:00]} 8. dxc5 {[%emt 0:04:00]} Qxd1+ {[%emt 0:00:00]} 9. Nxd1 {[%emt 0:00:00]} Bxc5 {[%emt 0:00:00]} 10. Nxc4 {[%emt 0:00:00]} Nc6 {[%emt 0:05:00]} 11. Bxc6+ {[%emt 0:02:00]} bxc6 12. Be3 {[%emt 0:00:00]} Bxe3 {[%emt 0:10:00]} 13. Ndxe3 {[%emt 0:16:00]} Ke7 {[%emt 0:03:00]} 14. f3 {[%emt 0:00:00]} Bd7 {[%emt 0:12:00]} 15. Kf2 {[%emt 0:00:00]} Rhd8 {[%emt 0:02:00]} 16. Rhd1 {[%emt 0:00:00]} Be8 {[%emt 0:00:00]} 17. Rxd8 {[%emt 0:00:00]} Rxd8 {[%emt 0:00:00]} 18. Rc1 {[%emt 0:00:00]} Rb8 {[%emt 0:31:00]} 19. Nc2 {[%emt 0:00:00]} c5 {[%emt 0:00:00]} 20. e4 {[%emt 0:34:00]} Bb5 {[%emt 0:00:00]} 21. N2e3 {[%emt 0:00:00]} Bxc4 {[%emt 0:00:00]} 22. Nxc4 {[%emt 0:00:00]} Nd7 {[%emt 0:00:00]} 23. b3 {[%emt 0:00:00]} f6 {[%emt 0:00:00]} 24. Ke3 {[%emt 0:00:00]} Rb5 {[%emt 0:00:00]} 25. Rc3 {[%emt 0:00:00]} Rb8 {[%emt 0:00:00]} 26. h4 {[%emt 0:00:00]} h5 {[%emt 0:03:00]} 27. Kd2 {[%emt 0:20:00]} Rg8 {[%emt 0:06:00]} 28. Ke2 {[%emt 0:00:00]} Rb8 {[%emt 0:00:00]} 29. Rc2 {[%emt 0:00:00]} Rb7 {[%emt 0:04:45]} 30. Nb2 {[%emt 0:00:00]} Rb8 {[%emt 0:00:00]} 31. Nd3 {[%emt 0:00:00]} Kd6 {[%emt 0:00:39]} 32. Nf4 {[%emt 0:11:21]} e5 {[%emt 0:05:57]} 33. Rd2+ {[%emt 0:00:00]} Ke7 {[%emt 0:00:00]} 34. Nd5+ {[%emt 0:00:00]} Kd8 {[%emt 0:01:09]} 35. g4 {[%emt 0:00:00]} hxg4 36. fxg4 {[%emt 0:00:00]} Rb7 {[%emt 0:00:00]} 37. h5 Ke8 {[%emt 0:00:00]} 38. Kd3 {[%emt 0:00:00]} Kf7 {[%emt 0:00:00]} 39. Kc4 {[%emt 0:00:00]} Ke6 {[%emt 0:00:02]} 40. Rh2 {[%emt 0:01:45]} Kf7 {[%emt 0:00:00]} 41. Rh3 {[%emt 0:00:00]} Kf8 {[%emt 0:19:35]} 42. Rf3 {[%emt 0:00:00]} Kf7 {[%emt 0:00:00]} 43. g5 {[%emt 0:00:00]} Ke6 {[%emt 0:00:00]} 44. h6 {[%emt 0:00:00]} gxh6 {[%emt 0:00:49]} 45. gxh6 Rb8 {[%emt 0:00:00]} 46. Rh3 {[%emt 0:00:00]} Rh8 {[%emt 0:00:00]} 47. Ne3 {[%emt 0:00:00]} Rc8 {[%emt 0:01:25]} 48. Kc3 {[%emt 0:22:52]} Nb6 {[%emt 0:01:37]} 49. Rg3 {[%emt 0:00:00]} Rh8 {[%emt 0:00:00]} 50. Nf5 {[%emt 0:00:00]} Rh7 {[%emt 0:00:00]} 51. Rg8 {[%emt 0:00:00]} Kf7 {[%emt 0:00:00]} 52. Rb8 {[%emt 0:00:00]} Nd7 {[%emt 0:00:00]} 53. Ra8 Kg6 {[%emt 0:00:00]} 54. Rxa6 {[%emt 0:00:00]} Nf8 {[%emt 0:00:00]} 55. Rc6 {[%emt 0:00:00]} Kg5 {[%emt 0:00:00]} 56. Rxc5 {[%emt 0:00:00]} Kf4 {[%emt 0:00:00]} 57. Rc6 {[%emt 0:00:00]} Kxe4 {[%emt 0:00:00]} 58. Rxf6 {[%emt 0:00:00]} Nd7 {[%emt 0:00:00]} 59. Nd6+ {[%emt 0:00:00]} Kd5 60. Rf7 {[%emt 0:00:00]} Rxh6 {[%emt 0:00:00]} 61. Rxd7 Kc6 {[%emt 0:00:00]} 62. Rd8 {[%emt 0:00:00]} Kc7 {[%emt 0:00:00]} 63. Nf7 {[%emt 0:00:00]} Rf6 {[%emt 0:00:00]} 64. Rf8 {[%emt 0:00:00]} 1-0

[Event "Cesenatico Open 2019"]
[Site "Cesenatico"]
[Date "2019.09.05"]
[Round "6"]
[White "Stromboli, Carlo"]
[Black "Schaefer, Michael"]
[Result "1-0"]
[ECO "C41"]
[WhiteElo "2270"]
[BlackElo "2181"]
[Annotator "ChessBase"]
[PlyCount "109"]
[EventDate "2019.09.01"]
[EventType "swiss"]
[EventCountry "ITA"]
[SourceTitle "playchess.com"]
[Source "ChessBase"]
[SourceQuality "1"]
[TimeControl "40/6000:900"]

1. e4 {[%emt 0:06:00]} d6 {[%emt 0:00:00]} 2. d4 {[%emt 0:00:00]} Nf6 {[%emt 0:06:00]} 3. Nc3 {[%emt 0:00:00]} e5 {[%emt 0:00:00]} 4. Nf3 {[%emt 0:01:00]} Nbd7 {[%emt 0:00:00]} 5. Bc4 {[%emt 0:02:00]} Be7 {[%emt 0:00:00]} 6. O-O {[%emt 0:00:00]} O-O {[%emt 0:00:00]} 7. Re1 {[%emt 0:01:00]} c6 {[%emt 0:00:00]} 8. a4 b6 {[%emt 0:00:00]} 9. b3 {[%emt 0:07:00]} a6 {[%emt 0:00:00]} 10. Bb2 {[%emt 0:00:00]} Bb7 {[%emt 0:02:00]} 11. Bf1 {[%emt 0:07:00]} Re8 {[%emt 0:21:00]} 12. Qd2 {[%emt 0:05:00]} Bf8 {[%emt 0:00:00]} 13. Rad1 {[%emt 0:01:00]} Qc7 {[%emt 0:00:00]} 14. h3 {[%emt 0:14:00]} g6 {[%emt 0:00:00]} 15. Qg5 {[%emt 0:00:00]} Bg7 {[%emt 0:06:00]} 16. dxe5 {[%emt 0:20:00]} Nxe5 {[%emt 0:05:00]} 17. Nxe5 {[%emt 0:00:00]} dxe5 {[%emt 0:01:00]} 18. Ba3 {[%emt 0:13:00]} Rad8 {[%emt 0:38:00]} 19. Qe3 {[%emt 0:02:00]} Bf8 {[%emt 0:00:00]} 20. Bxf8 {[%emt 0:01:16]} Kxf8 {[%emt 0:00:00]} 21. Qh6+ {[%emt 0:18:22]} Kg8 {[%emt 0:00:00]} 22. Rd3 {[%emt 0:00:00]} Rxd3 {[%emt 0:00:00]} 23. Bxd3 {[%emt 0:00:00]} Nd7 24. h4 {[%emt 0:00:00]} Qd6 {[%emt 0:00:00]} 25. h5 {[%emt 0:00:00]} Qf8 {[%emt 0:00:00]} 26. Qg5 {[%emt 0:00:00]} Qe7 {[%emt 0:00:00]} 27. Qg3 {[%emt 0:00:00]} Kg7 {[%emt 0:00:00]} 28. Nd1 {[%emt 0:00:00]} Nc5 {[%emt 0:00:00]} 29. Bc4 {[%emt 0:00:44]} b5 {[%emt 0:00:00]} 30. axb5 {[%emt 0:00:00]} axb5 {[%emt 0:00:00]} 31. Bf1 {[%emt 0:00:00]} Qf6 {[%emt 0:00:00]} 32. Qe3 {[%emt 0:00:00]} Qe7 {[%emt 0:00:00]} 33. g3 {[%emt 0:00:00]} Ne6 34. Bd3 {[%emt 0:00:00]} Qc5 {[%emt 0:00:00]} 35. Qd2 {[%emt 0:00:00]} Qe7 {[%emt 0:00:00]} 36. Kg2 {[%emt 0:00:00]} Qg5 {[%emt 0:00:00]} 37. Qxg5 {[%emt 0:00:00]} Nxg5 {[%emt 0:00:00]} 38. hxg6 {[%emt 0:00:01]} hxg6 {[%emt 0:00:00]} 39. Nc3 {[%emt 0:00:00]} Ra8 {[%emt 0:00:00]} 40. f3 Ne6 41. Rh1 {[%emt 0:03:21]} Nc5 {[%emt 0:00:00]} 42. Rd1 {[%emt 0:07:33]} Kf6 {[%emt 0:04:00]} 43. Kf2 {[%emt 0:00:00]} Ke7 {[%emt 0:01:00]} 44. Ke3 {[%emt 0:00:26]} Bc8 {[%emt 0:01:00]} 45. Bxb5 {[%emt 0:01:40]} cxb5 {[%emt 0:00:00]} 46. Nd5+ {[%emt 0:00:00]} Kf8 {[%emt 0:00:00]} 47. Nb6 {[%emt 0:00:00]} Ra2 {[%emt 0:04:00]} 48. Rd8+ Kg7 {[%emt 0:00:00]} 49. Rxc8 {[%emt 0:00:00]} Rxc2 {[%emt 0:23:32]} 50. b4 {[%emt 0:00:09]} Rc3+ {[%emt 0:00:00]} 51. Kd2 {[%emt 0:00:00]} Nxe4+ {[%emt 0:00:00]} 52. fxe4 {[%emt 0:00:00]} Rxg3 {[%emt 0:00:00]} 53. Rc5 {[%emt 0:00:00]} f6 {[%emt 0:00:00]} 54. Rxb5 {[%emt 0:00:00]} g5 {[%emt 0:00:00]} 55. Nd5 {[%emt 0:00:00]} 1-0

[Event "Cesenatico Open 2019"]
[Site "Cesenatico"]
[Date "2019.09.05"]
[Round "6"]
[White "Di Trapani, Davide"]
[Black "Dragojlovic, Andjelko"]
[Result "1/2-1/2"]
[ECO "B27"]
[WhiteElo "2181"]
[BlackElo "2293"]
[Annotator "ChessBase"]
[PlyCount "49"]
[EventDate "2019.09.01"]
[EventType "swiss"]
[EventCountry "ITA"]
[SourceTitle "playchess.com"]
[Source "ChessBase"]
[SourceQuality "1"]
[TimeControl "40/6000:900"]

1. d4 {[%emt 0:00:00]} g6 {[%emt 0:03:00]} 2. e4 {[%emt 0:01:00]} Bg7 {[%emt 0:00:00]} 3. Nf3 {[%emt 0:00:00]} c5 {[%emt 0:01:00]} 4. Be3 {[%emt 0:00:00]} Nf6 5. Nc3 {[%emt 0:00:00]} Qa5 {[%emt 0:09:00]} 6. Qd2 cxd4 {[%emt 0:00:00]} 7. Nxd4 {[%emt 0:05:00]} Nc6 {[%emt 0:00:00]} 8. Nb3 Qd8 {[%emt 0:00:00]} 9. Be2 {[%emt 0:01:00]} O-O {[%emt 0:00:00]} 10. O-O-O {[%emt 0:09:00]} a5 {[%emt 0:01:00]} 11. a4 {[%emt 0:02:00]} d6 {[%emt 0:05:00]} 12. Bh6 {[%emt 0:01:00]} Be6 {[%emt 0:00:00]} 13. Bxg7 {[%emt 0:05:00]} Kxg7 {[%emt 0:00:00]} 14. Nd4 {[%emt 0:02:00]} Qb6 {[%emt 0:01:00]} 15. Nxe6+ fxe6 {[%emt 0:00:00]} 16. Bc4 {[%emt 0:06:00]} e5 {[%emt 0:00:00]} 17. f3 {[%emt 0:01:00]} Nd4 {[%emt 0:05:00]} 18. Nb5 {[%emt 0:06:00]} Nxb5 19. Bxb5 {[%emt 0:00:00]} Rac8 {[%emt 0:00:00]} 20. Kb1 {[%emt 0:00:00]} Rc5 {[%emt 0:03:00]} 21. g4 {[%emt 0:18:00]} Rfc8 {[%emt 0:04:00]} 22. c3 {[%emt 0:00:00]} Ng8 {[%emt 0:09:00]} 23. g5 {[%emt 0:11:00]} Rf8 {[%emt 0:00:00]} 24. h4 {[%emt 0:03:00]} Rcc8 {[%emt 0:16:00]} 25. h5 {[%emt 0:10:33]} 1/2-1/2

[Event "Cesenatico Open 2019"]
[Site "Cesenatico"]
[Date "2019.09.05"]
[Round "6"]
[White "Drei, Andrea"]
[Black "Dittmar, Peter"]
[Result "1/2-1/2"]
[ECO "C08"]
[WhiteElo "2137"]
[BlackElo "2259"]
[Annotator "ChessBase"]
[PlyCount "50"]
[EventDate "2019.09.01"]
[EventType "swiss"]
[EventCountry "ITA"]
[SourceTitle "playchess.com"]
[Source "ChessBase"]
[SourceQuality "1"]
[TimeControl "40/6000:900"]

1. e4 {[%emt 0:01:00]} e6 {[%emt 0:01:00]} 2. d4 {[%emt 0:00:00]} d5 {[%emt 0:00:00]} 3. Nd2 {[%emt 0:00:00]} a6 {[%emt 0:00:00]} 4. Ngf3 {[%emt 0:01:00]} c5 5. exd5 {[%emt 0:01:00]} exd5 {[%emt 0:00:00]} 6. Be2 {[%emt 0:00:00]} Nc6 {[%emt 0:00:00]} 7. O-O {[%emt 0:01:00]} Bd6 {[%emt 0:00:00]} 8. Re1 {[%emt 0:01:00]} Nge7 {[%emt 0:00:00]} 9. dxc5 {[%emt 0:00:00]} Bxc5 {[%emt 0:04:00]} 10. Nb3 {[%emt 0:00:00]} Ba7 {[%emt 0:00:00]} 11. h3 {[%emt 0:09:00]} O-O {[%emt 0:00:00]} 12. Bd3 {[%emt 0:01:00]} Nf5 {[%emt 0:00:00]} 13. Bxf5 {[%emt 0:00:00]} Bxf5 {[%emt 0:00:00]} 14. Be3 {[%emt 0:04:00]} Bxe3 {[%emt 0:01:00]} 15. Rxe3 {[%emt 0:00:00]} Qb6 {[%emt 0:01:00]} 16. Qd2 {[%emt 0:06:00]} Rad8 {[%emt 0:26:00]} 17. c3 {[%emt 0:08:00]} Be4 {[%emt 0:00:00]} 18. Nbd4 {[%emt 0:23:00]} Na5 {[%emt 0:00:00]} 19. b3 {[%emt 0:04:00]} Nc6 {[%emt 0:00:00]} 20. Rae1 {[%emt 0:00:00]} h6 {[%emt 0:00:00]} 21. Rd1 {[%emt 0:05:00]} Rc8 {[%emt 0:00:00]} 22. Nxc6 {[%emt 0:06:00]} bxc6 {[%emt 0:00:00]} 23. b4 {[%emt 0:04:00]} a5 {[%emt 0:00:00]} 24. a3 {[%emt 0:00:00]} axb4 {[%emt 0:00:00]} 25. axb4 {[%emt 0:01:00]} Bxf3 1/2-1/2

[Event "Cesenatico Open 2019"]
[Site "Cesenatico"]
[Date "2019.09.06"]
[Round "7"]
[White "Schacher, Gerd"]
[Black "Voltolini, Giuseppe"]
[Result "0-1"]
[ECO "D32"]
[WhiteElo "2311"]
[BlackElo "2115"]
[Annotator "ChessBase"]
[PlyCount "66"]
[EventDate "2019.09.01"]
[EventType "swiss"]
[EventCountry "ITA"]
[SourceTitle "playchess.com"]
[Source "ChessBase"]
[SourceQuality "1"]
[TimeControl "40/6000:900"]

1. c4 {[%emt 0:00:00]} Nf6 {[%emt 0:00:00]} 2. Nc3 {[%emt 0:00:00]} e6 {[%emt 0:00:00]} 3. Nf3 {[%emt 0:00:00]} d5 {[%emt 0:00:00]} 4. e3 {[%emt 0:01:00]} c5 5. cxd5 {[%emt 0:00:00]} exd5 {[%emt 0:05:00]} 6. d4 a6 {[%emt 0:00:00]} 7. Be2 {[%emt 0:04:00]} Nc6 {[%emt 0:04:00]} 8. Ne5 {[%emt 0:10:00]} Be7 {[%emt 0:06:00]} 9. Qa4 {[%emt 0:22:00]} c4 {[%emt 0:07:00]} 10. Nxc6 {[%emt 0:20:00]} bxc6 {[%emt 0:00:00]} 11. e4 {[%emt 0:00:00]} Bd7 12. e5 {[%emt 0:01:00]} Ng8 {[%emt 0:20:00]} 13. O-O {[%emt 0:01:00]} h5 14. Qd1 {[%emt 0:07:00]} g6 {[%emt 0:04:00]} 15. b3 cxb3 {[%emt 0:00:00]} 16. axb3 {[%emt 0:03:00]} a5 {[%emt 0:00:00]} 17. Na4 Nh6 {[%emt 0:01:00]} 18. Bxh6 {[%emt 0:06:00]} Rxh6 19. Qc1 {[%emt 0:05:00]} Rh8 {[%emt 0:03:00]} 20. Nc5 {[%emt 0:00:52]} Qb6 21. Qc3 {[%emt 0:05:45]} Bf5 {[%emt 0:31:46]} 22. Ra4 Rb8 {[%emt 0:11:03]} 23. Rxa5 {[%emt 0:02:32]} Kf8 24. Bd1 {[%emt 0:06:11]} Kg7 {[%emt 0:01:19]} 25. Qa1 Rhc8 {[%emt 0:00:51]} 26. b4 {[%emt 0:00:39]} Bxc5 27. dxc5 {[%emt 0:02:09]} Qxb4 {[%emt 0:00:23]} 28. e6+ Qb2 {[%emt 0:00:00]} 29. Qxb2+ {[%emt 0:00:10]} Rxb2 30. exf7 {[%emt 0:00:00]} Kxf7 {[%emt 0:00:00]} 31. f3 Re8 {[%emt 0:00:00]} 32. Ra3 {[%emt 0:00:19]} Rd2 {[%emt 0:03:52]} 33. g4 {[%emt 0:00:37]} Bd3 {[%emt 0:00:00]} 0-1

[Event "Cesenatico Open 2019"]
[Site "Cesenatico"]
[Date "2019.09.06"]
[Round "7"]
[White "Dragojlovic, Andjelko"]
[Black "Damia, Angelo"]
[Result "0-1"]
[ECO "C28"]
[WhiteElo "2293"]
[BlackElo "2240"]
[Annotator "ChessBase"]
[PlyCount "62"]
[EventDate "2019.09.01"]
[EventType "swiss"]
[EventCountry "ITA"]
[SourceTitle "playchess.com"]
[Source "ChessBase"]
[SourceQuality "1"]
[TimeControl "40/6000:900"]

1. e4 {[%emt 0:06:00]} Nc6 {[%emt 0:01:00]} 2. Nc3 {[%emt 0:01:00]} e5 {[%emt 0:08:00]} 3. Bc4 {[%emt 0:02:00]} Nf6 {[%emt 0:00:00]} 4. d3 {[%emt 0:00:00]} Na5 5. Qf3 {[%emt 0:02:00]} Nxc4 {[%emt 0:00:00]} 6. dxc4 {[%emt 0:00:00]} Bb4 {[%emt 0:00:00]} 7. Nge2 {[%emt 0:00:00]} d6 {[%emt 0:00:00]} 8. Bg5 {[%emt 0:07:00]} Bg4 {[%emt 0:02:00]} 9. Bxf6 {[%emt 0:09:00]} Bxf3 10. Bxd8 {[%emt 0:00:00]} Bxe2 {[%emt 0:00:00]} 11. Kxe2 {[%emt 0:00:00]} Kxd8 {[%emt 0:02:00]} 12. Nd5 {[%emt 0:05:00]} Ba5 {[%emt 0:00:00]} 13. h4 {[%emt 0:00:00]} c6 {[%emt 0:00:00]} 14. Ne3 {[%emt 0:02:00]} g6 {[%emt 0:00:00]} 15. h5 Ke7 {[%emt 0:00:00]} 16. Rad1 {[%emt 0:06:00]} Bb6 {[%emt 0:00:00]} 17. c3 {[%emt 0:01:00]} Bxe3 {[%emt 0:02:00]} 18. Kxe3 {[%emt 0:00:00]} f5 19. hxg6 {[%emt 0:10:00]} hxg6 {[%emt 0:00:00]} 20. exf5 {[%emt 0:00:00]} gxf5 {[%emt 0:00:00]} 21. g3 {[%emt 0:05:00]} Rag8 {[%emt 0:02:00]} 22. b4 {[%emt 0:01:00]} Ke6 {[%emt 0:07:00]} 23. a4 {[%emt 0:02:00]} d5 {[%emt 0:03:00]} 24. b5 {[%emt 0:07:00]} dxc4 {[%emt 0:00:00]} 25. bxc6 {[%emt 0:02:00]} bxc6 26. Rb1 {[%emt 0:06:00]} Rb8 {[%emt 0:05:00]} 27. Rh6+ {[%emt 0:00:00]} Rxh6 {[%emt 0:05:00]} 28. Rxb8 {[%emt 0:06:05]} Rh1 29. Rb7 {[%emt 0:03:07]} Rd1 {[%emt 0:07:00]} 30. Rxa7 {[%emt 0:00:35]} Rd3+ {[%emt 0:00:00]} 31. Ke2 {[%emt 0:00:00]} Rxc3 {[%emt 0:00:00]} 0-1